[Event "Late-Titled-Tuesday-Blitz-September-12-2023"]
[Site "Chess.com"]
[Date "2023.09.12"]
[Round "11"]
[White "leoduarte"]
[Black "djano"]
[Result "0-1"]
[WhiteElo "2460"]
[BlackElo "2626"]
[TimeControl "180+1"]
[EndTime "15:59:37 PDT"]
[Termination "djano won on time"]

1. d4 {[%clk 0:03:00.9]} 1... d5 {[%clk 0:02:59.5]} 2. c4 {[%clk 0:03:00.5]}
2... e6 {[%clk 0:02:59.2]} 3. Nf3 {[%clk 0:03:01]} 3... h6 {[%clk 0:02:59]} 4.
g3 {[%clk 0:03:00.2]} 4... Nf6 {[%clk 0:02:59.3]} 5. Bg2 {[%clk 0:03:00.1]} 5...
Bb4+ {[%clk 0:02:58.9]} 6. Bd2 {[%clk 0:02:47]} 6... Be7 {[%clk 0:02:58.9]} 7.
Qc2 {[%clk 0:02:45.5]} 7... O-O {[%clk 0:02:58.1]} 8. O-O {[%clk 0:02:46.2]}
8... c6 {[%clk 0:02:42.5]} 9. Rd1 {[%clk 0:02:44.8]} 9... b6 {[%clk 0:02:41.6]}
10. Bf4 {[%clk 0:02:43.1]} 10... Nbd7 {[%clk 0:02:40.6]} 11. Nbd2 {[%clk
0:02:27.9]} 11... Ba6 {[%clk 0:02:39.5]} 12. b3 {[%clk 0:02:18.3]} 12... Rc8
{[%clk 0:02:37]} 13. e4 {[%clk 0:02:17.2]} 13... c5 {[%clk 0:02:35]} 14. exd5
{[%clk 0:01:40.9]} 14... exd5 {[%clk 0:02:33.9]} 15. dxc5 {[%clk 0:01:41]} 15...
Bxc5 {[%clk 0:02:27.9]} 16. h3 {[%clk 0:01:26.7]} 16... Re8 {[%clk 0:02:27.1]}
17. Nf1 {[%clk 0:01:15.2]} 17... dxc4 {[%clk 0:02:21.4]} 18. bxc4 {[%clk
0:01:14.2]} 18... Bxc4 {[%clk 0:02:21.4]} 19. Ne3 {[%clk 0:01:02]} 19... Bxe3
{[%clk 0:02:06.1]} 20. Bxe3 {[%clk 0:01:02.9]} 20... Bf1 {[%clk 0:02:05.6]} 21.
Qa4 {[%clk 0:01:00.9]} 21... Bxg2 {[%clk 0:02:04.7]} 22. Kxg2 {[%clk 0:01:01.5]}
22... Qc7 {[%clk 0:02:04.5]} 23. Rac1 {[%clk 0:00:55.4]} 23... Qb7 {[%clk
0:02:04.7]} 24. Bf4 {[%clk 0:00:28.6]} 24... Nc5 {[%clk 0:01:56.4]} 25. Qb5
{[%clk 0:00:22.7]} 25... Nd5 {[%clk 0:01:48]} 26. Rd4 {[%clk 0:00:13.8]} 26...
a6 {[%clk 0:01:32.2]} 27. Qb2 {[%clk 0:00:12.3]} 27... Nxf4+ {[%clk 0:01:29.1]}
28. Rxf4 {[%clk 0:00:13.2]} 28... Nd3 {[%clk 0:01:28.8]} 29. Rxc8 {[%clk
0:00:08.9]} 29... Nxf4+ {[%clk 0:01:26.2]} 30. gxf4 {[%clk 0:00:08.3]} 30...
Rxc8 {[%clk 0:01:26.9]} 31. Qd4 {[%clk 0:00:08.5]} 31... Rc6 {[%clk 0:01:20.7]}
32. Kh2 {[%clk 0:00:07.3]} 32... Rg6 {[%clk 0:01:17.3]} 33. Qe3 {[%clk
0:00:02.6]} 33... Re6 {[%clk 0:01:16.8]} 34. Qd3 {[%clk 0:00:02.3]} 34... Qe4
{[%clk 0:01:16]} 35. Qd8+ {[%clk 0:00:01.6]} 35... Kh7 {[%clk 0:01:15.8]} 0-1

[Event "Late-Titled-Tuesday-Blitz-September-12-2023"]
[Site "Chess.com"]
[Date "2023.09.12"]
[Round "11"]
[White "Hikaru"]
[Black "mishanick"]
[Result "0-1"]
[WhiteElo "3189"]
[BlackElo "3078"]
[TimeControl "180+1"]
[EndTime "15:59:39 PDT"]
[Termination "mishanick won by resignation"]

1. Nf3 {[%clk 0:03:00.9]} 1... d5 {[%clk 0:02:59.5]} 2. e3 {[%clk 0:02:57.8]}
2... c5 {[%clk 0:02:58.3]} 3. b3 {[%clk 0:02:57.8]} 3... a6 {[%clk 0:02:58.5]}
4. Bb2 {[%clk 0:02:54.5]} 4... Nc6 {[%clk 0:02:59.1]} 5. d4 {[%clk 0:02:54.5]}
5... Nf6 {[%clk 0:02:59.8]} 6. Nbd2 {[%clk 0:02:54.1]} 6... cxd4 {[%clk
0:02:59.9]} 7. Nxd4 {[%clk 0:02:54.2]} 7... Nxd4 {[%clk 0:03:00]} 8. Bxd4 {[%clk
0:02:54.6]} 8... Qc7 {[%clk 0:03:00.3]} 9. c4 {[%clk 0:02:54.7]} 9... e5 {[%clk
0:02:51.4]} 10. Bb2 {[%clk 0:02:54.1]} 10... Bg4 {[%clk 0:01:41.7]} 11. Be2
{[%clk 0:02:26.2]} 11... Bxe2 {[%clk 0:01:42.2]} 12. Kxe2 {[%clk 0:02:26.7]}
12... Bb4 {[%clk 0:01:23.7]} 13. Rc1 {[%clk 0:02:24.2]} 13... d4 {[%clk
0:01:18.6]} 14. exd4 {[%clk 0:02:14.2]} 14... exd4 {[%clk 0:01:19.5]} 15. Nf3
{[%clk 0:02:14.7]} 15... O-O {[%clk 0:01:19.7]} 16. Qxd4 {[%clk 0:02:13.5]}
16... Rfe8+ {[%clk 0:01:17.4]} 17. Kf1 {[%clk 0:02:13.5]} 17... Rad8 {[%clk
0:00:55.1]} 18. Qh4 {[%clk 0:02:13.6]} 18... Re4 {[%clk 0:00:54]} 19. Qg5 {[%clk
0:02:09.2]} 19... Qd7 {[%clk 0:00:38.9]} 20. Bd4 {[%clk 0:01:16.7]} 20... h6
{[%clk 0:00:36.1]} 21. Qg3 {[%clk 0:01:15.5]} 21... Bc5 {[%clk 0:00:29.4]} 22.
Qh3 {[%clk 0:01:03.5]} 22... Bxd4 {[%clk 0:00:29.1]} 23. Rd1 {[%clk 0:01:03.1]}
23... Qxh3 {[%clk 0:00:25.6]} 24. gxh3 {[%clk 0:01:04]} 24... Bb6 {[%clk
0:00:25.8]} 25. Rxd8+ {[%clk 0:01:03.7]} 25... Bxd8 {[%clk 0:00:26.7]} 26. Kg2
{[%clk 0:01:04.2]} 26... Bb6 {[%clk 0:00:23.9]} 27. Rc1 {[%clk 0:01:04.6]} 27...
Bc5 {[%clk 0:00:20.5]} 28. Rc2 {[%clk 0:01:04]} 28... a5 {[%clk 0:00:19]} 29.
Kf1 {[%clk 0:01:04.2]} 29... b6 {[%clk 0:00:19.5]} 30. Ne1 {[%clk 0:01:04.8]}
30... g5 {[%clk 0:00:19.4]} 31. Nd3 {[%clk 0:01:05.2]} 31... Rh4 {[%clk
0:00:19.7]} 32. Re2 {[%clk 0:01:02.4]} 32... Re4 {[%clk 0:00:18.7]} 33. Rc2
{[%clk 0:01:01.8]} 33... Rd4 {[%clk 0:00:18.6]} 34. Nxc5 {[%clk 0:00:57.7]}
34... bxc5 {[%clk 0:00:19.5]} 35. Re2 {[%clk 0:00:58.4]} 35... Ne4 {[%clk
0:00:18.6]} 36. f3 {[%clk 0:00:56.5]} 36... Rd1+ {[%clk 0:00:18.8]} 0-1

[Event "Late-Titled-Tuesday-Blitz-September-12-2023"]
[Site "Chess.com"]
[Date "2023.09.12"]
[Round "11"]
[White "CURRUTACO59"]
[Black "Nigerianprodigy"]
[Result "0-1"]
[WhiteElo "2251"]
[BlackElo "2377"]
[TimeControl "180+1"]
[EndTime "15:59:41 PDT"]
[Termination "Nigerianprodigy won on time"]

1. Nf3 {[%clk 0:03:00.9]} 1... d5 {[%clk 0:02:59.3]} 2. d4 {[%clk 0:03:00.1]}
2... Nf6 {[%clk 0:02:59.5]} 3. c4 {[%clk 0:02:59.9]} 3... e6 {[%clk 0:02:57.6]}
4. cxd5 {[%clk 0:02:59.6]} 4... exd5 {[%clk 0:02:56.2]} 5. Nc3 {[%clk
0:03:00.2]} 5... Bb4 {[%clk 0:02:54.7]} 6. Bd2 {[%clk 0:02:57]} 6... O-O {[%clk
0:02:53.7]} 7. e3 {[%clk 0:02:57.3]} 7... c6 {[%clk 0:02:50.6]} 8. Be2 {[%clk
0:02:52.4]} 8... Bf5 {[%clk 0:02:47.5]} 9. O-O {[%clk 0:02:51]} 9... Nbd7 {[%clk
0:02:47.5]} 10. a3 {[%clk 0:02:49.4]} 10... Bd6 {[%clk 0:02:47.1]} 11. b4 {[%clk
0:02:42.5]} 11... a6 {[%clk 0:02:42.7]} 12. Rc1 {[%clk 0:02:22.3]} 12... Ne4
{[%clk 0:02:40.1]} 13. Qb3 {[%clk 0:02:10.1]} 13... g5 {[%clk 0:02:26.2]} 14.
Rfd1 {[%clk 0:01:55.1]} 14... g4 {[%clk 0:02:23.2]} 15. Nxe4 {[%clk 0:01:18.9]}
15... Bxe4 {[%clk 0:02:09.3]} 16. Ne5 {[%clk 0:01:04.5]} 16... Nxe5 {[%clk
0:01:55]} 17. dxe5 {[%clk 0:01:04]} 17... Bxe5 {[%clk 0:01:55.9]} 18. Bxg4
{[%clk 0:00:56.3]} 18... Qh4 {[%clk 0:01:48.2]} 19. Bh3 {[%clk 0:00:39.1]} 19...
Rae8 {[%clk 0:01:37.5]} 20. Bc3 {[%clk 0:00:38.6]} 20... f6 {[%clk 0:01:24.7]}
21. Bd4 {[%clk 0:00:33.1]} 21... Rf7 {[%clk 0:01:23.6]} 22. f4 {[%clk
0:00:24.8]} 22... Rg7 {[%clk 0:01:14.3]} 23. Kf1 {[%clk 0:00:13.5]} 23... Bxf4
{[%clk 0:00:56.8]} 24. exf4 {[%clk 0:00:12.3]} 24... Qxf4+ {[%clk 0:00:56.4]}
25. Kg1 {[%clk 0:00:11.8]} 25... Bxg2 {[%clk 0:00:53.4]} 26. Bxg2 {[%clk
0:00:09.5]} 26... Re2 {[%clk 0:00:52]} 0-1

[Event "Late-Titled-Tuesday-Blitz-September-12-2023"]
[Site "Chess.com"]
[Date "2023.09.12"]
[Round "11"]
[White "kreonx"]
[Black "RaphaeI"]
[Result "1-0"]
[WhiteElo "2476"]
[BlackElo "2557"]
[TimeControl "180+1"]
[EndTime "15:59:45 PDT"]
[Termination "kreonx won on time"]

1. e4 {[%clk 0:02:51.4]} 1... e5 {[%clk 0:03:00]} 2. Nf3 {[%clk 0:02:50.7]} 2...
Nc6 {[%clk 0:03:00.5]} 3. d4 {[%clk 0:02:50.9]} 3... exd4 {[%clk 0:03:00.5]} 4.
Nxd4 {[%clk 0:02:51.8]} 4... Nf6 {[%clk 0:03:01.1]} 5. Nxc6 {[%clk 0:02:50.1]}
5... bxc6 {[%clk 0:03:02]} 6. e5 {[%clk 0:02:50.4]} 6... Qe7 {[%clk 0:03:02.5]}
7. Qe2 {[%clk 0:02:51]} 7... Nd5 {[%clk 0:03:03]} 8. c4 {[%clk 0:02:51.7]} 8...
Ba6 {[%clk 0:03:03.4]} 9. b3 {[%clk 0:02:45.7]} 9... g6 {[%clk 0:03:02.9]} 10.
f4 {[%clk 0:02:42.8]} 10... d6 {[%clk 0:02:51.1]} 11. Bb2 {[%clk 0:01:55.3]}
11... Nxf4 {[%clk 0:01:59.7]} 12. Qf3 {[%clk 0:01:55.1]} 12... O-O-O {[%clk
0:01:35.6]} 13. Qxf4 {[%clk 0:01:50.5]} 13... Bg7 {[%clk 0:01:35.7]} 14. Be2
{[%clk 0:01:45.4]} 14... dxe5 {[%clk 0:01:27.3]} 15. Qe3 {[%clk 0:01:40.1]}
15... c5 {[%clk 0:01:22]} 16. O-O {[%clk 0:01:38.3]} 16... f5 {[%clk 0:01:22.3]}
17. Nc3 {[%clk 0:01:27.7]} 17... e4 {[%clk 0:01:22.5]} 18. Nd5 {[%clk
0:01:23.2]} 18... Rxd5 {[%clk 0:01:19.1]} 19. Bxg7 {[%clk 0:01:22.3]} 19... Qxg7
{[%clk 0:00:42.8]} 20. cxd5 {[%clk 0:01:21.4]} 20... Bxe2 {[%clk 0:00:39.5]} 21.
Qxe2 {[%clk 0:01:20.5]} 21... Qd4+ {[%clk 0:00:40.4]} 22. Kh1 {[%clk 0:01:16.4]}
22... Re8 {[%clk 0:00:30.1]} 23. Rad1 {[%clk 0:01:05.9]} 23... Qc3 {[%clk
0:00:29.6]} 24. Qa6+ {[%clk 0:01:02.2]} 24... Kd8 {[%clk 0:00:25.1]} 25. d6
{[%clk 0:01:00.3]} 25... e3 {[%clk 0:00:02.4]} 26. dxc7+ {[%clk 0:00:57.3]}
26... Kxc7 {[%clk 0:00:02.9]} 27. Qxa7+ {[%clk 0:00:49.3]} 1-0

[Event "Late-Titled-Tuesday-Blitz-September-12-2023"]
[Site "Chess.com"]
[Date "2023.09.12"]
[Round "11"]
[White "Francisco_Ferrari"]
[Black "valemava"]
[Result "0-1"]
[WhiteElo "2241"]
[BlackElo "2364"]
[TimeControl "180+1"]
[EndTime "15:59:45 PDT"]
[Termination "valemava won by checkmate"]

1. e4 {[%clk 0:02:56.1]} 1... c5 {[%clk 0:02:59.9]} 2. Nf3 {[%clk 0:02:55.8]}
2... Qa5 {[%clk 0:03:00]} 3. Nc3 {[%clk 0:02:39]} 3... a6 {[%clk 0:02:59.3]} 4.
d4 {[%clk 0:02:34.8]} 4... b5 {[%clk 0:02:59.4]} 5. dxc5 {[%clk 0:02:16.7]} 5...
e6 {[%clk 0:02:58.6]} 6. Bd2 {[%clk 0:02:11.8]} 6... b4 {[%clk 0:02:59.5]} 7.
Ne2 {[%clk 0:02:04]} 7... Bxc5 {[%clk 0:02:59.4]} 8. Ned4 {[%clk 0:01:57.3]}
8... Qb6 {[%clk 0:02:59]} 9. Be3 {[%clk 0:01:56.8]} 9... Bb7 {[%clk 0:02:59.3]}
10. Bd3 {[%clk 0:01:54.4]} 10... Nf6 {[%clk 0:02:59.1]} 11. O-O {[%clk
0:01:29.5]} 11... Bxe4 {[%clk 0:02:55.9]} 12. Bxe4 {[%clk 0:01:28]} 12... Nxe4
{[%clk 0:02:56.8]} 13. Qd3 {[%clk 0:01:26.8]} 13... d5 {[%clk 0:02:56.5]} 14.
Ne5 {[%clk 0:01:24.4]} 14... O-O {[%clk 0:02:51.4]} 15. Rfd1 {[%clk 0:01:13.7]}
15... Nf6 {[%clk 0:02:45.2]} 16. Bg5 {[%clk 0:01:02.9]} 16... Bxd4 {[%clk
0:02:43]} 17. Qxd4 {[%clk 0:00:47.6]} 17... Qxd4 {[%clk 0:02:42.3]} 18. Rxd4
{[%clk 0:00:48.5]} 18... a5 {[%clk 0:02:22.9]} 19. a3 {[%clk 0:00:48.1]} 19...
bxa3 {[%clk 0:02:21.4]} 20. Rxa3 {[%clk 0:00:46.3]} 20... Ne4 {[%clk 0:02:16]}
21. Be3 {[%clk 0:00:38.6]} 21... Rc8 {[%clk 0:02:15.2]} 22. c3 {[%clk
0:00:34.7]} 22... f6 {[%clk 0:02:12.5]} 23. Nd3 {[%clk 0:00:31.2]} 23... Nd6
{[%clk 0:02:10.9]} 24. Rda4 {[%clk 0:00:25.7]} 24... Nc4 {[%clk 0:02:10.4]} 25.
Ra1 {[%clk 0:00:25.4]} 25... Nc6 {[%clk 0:02:03.3]} 26. Bc5 {[%clk 0:00:18.5]}
26... Rab8 {[%clk 0:01:57.8]} 27. b4 {[%clk 0:00:16.6]} 27... axb4 {[%clk
0:01:57.3]} 28. cxb4 {[%clk 0:00:16.5]} 28... e5 {[%clk 0:01:55]} 29. Kf1 {[%clk
0:00:15.4]} 29... e4 {[%clk 0:01:54.6]} 30. Nf4 {[%clk 0:00:15.7]} 30... Kf7
{[%clk 0:01:53.5]} 31. Nxd5 {[%clk 0:00:15.9]} 31... N4e5 {[%clk 0:01:50.3]} 32.
Nc3 {[%clk 0:00:14.8]} 32... f5 {[%clk 0:01:46.4]} 33. Rd1 {[%clk 0:00:12.6]}
33... Rd8 {[%clk 0:01:45.7]} 34. Rxd8 {[%clk 0:00:10]} 34... Rxd8 {[%clk
0:01:46.6]} 35. Ke2 {[%clk 0:00:10.3]} 35... Nc4 {[%clk 0:01:38.7]} 36. b5
{[%clk 0:00:08.3]} 36... N6e5 {[%clk 0:01:33.2]} 37. b6 {[%clk 0:00:05.4]} 37...
Rd2+ {[%clk 0:01:32.4]} 38. Ke1 {[%clk 0:00:05.5]} 38... Nd3+ {[%clk 0:01:32.2]}
39. Kf1 {[%clk 0:00:05.9]} 39... Rc2 {[%clk 0:01:27.1]} 40. Rxc4 {[%clk
0:00:06.1]} 40... Nf4 {[%clk 0:01:18]} 41. b7 {[%clk 0:00:05.8]} 41... Rc1+
{[%clk 0:01:17.9]} 42. Nd1 {[%clk 0:00:02]} 42... Rxd1# {[%clk 0:01:17.9]} 0-1

[Event "Late-Titled-Tuesday-Blitz-September-12-2023"]
[Site "Chess.com"]
[Date "2023.09.12"]
[Round "11"]
[White "WPWPWP-2015"]
[Black "RCone"]
[Result "0-1"]
[WhiteElo "2501"]
[BlackElo "2348"]
[TimeControl "180+1"]
[EndTime "15:59:50 PDT"]
[Termination "RCone won on time"]

1. d4 {[%clk 0:02:57.7]} 1... d6 {[%clk 0:02:59.1]} 2. e4 {[%clk 0:02:56.4]}
2... Nf6 {[%clk 0:02:59.3]} 3. Nc3 {[%clk 0:02:55.6]} 3... g6 {[%clk 0:02:59.8]}
4. Nf3 {[%clk 0:02:54.2]} 4... Bg7 {[%clk 0:02:59.9]} 5. h3 {[%clk 0:02:53.6]}
5... O-O {[%clk 0:02:59.5]} 6. Be2 {[%clk 0:02:52.5]} 6... Nc6 {[%clk
0:02:59.8]} 7. O-O {[%clk 0:02:52.1]} 7... e5 {[%clk 0:02:59.7]} 8. d5 {[%clk
0:02:52]} 8... Ne7 {[%clk 0:02:59]} 9. a4 {[%clk 0:02:50.8]} 9... a5 {[%clk
0:02:57.9]} 10. Re1 {[%clk 0:02:48.7]} 10... Ne8 {[%clk 0:02:57.1]} 11. Nd2
{[%clk 0:02:46.7]} 11... f5 {[%clk 0:02:56.6]} 12. f3 {[%clk 0:02:46.5]} 12...
Bh6 {[%clk 0:02:56]} 13. Nc4 {[%clk 0:02:45.4]} 13... Bxc1 {[%clk 0:02:55.3]}
14. Qxc1 {[%clk 0:02:45.3]} 14... f4 {[%clk 0:02:54.6]} 15. Nb5 {[%clk
0:02:39.1]} 15... g5 {[%clk 0:02:45.4]} 16. c3 {[%clk 0:02:36.4]} 16... h5
{[%clk 0:02:42.6]} 17. b4 {[%clk 0:02:36]} 17... b6 {[%clk 0:02:41]} 18. bxa5
{[%clk 0:02:34.3]} 18... bxa5 {[%clk 0:02:41.9]} 19. Qd1 {[%clk 0:02:25]} 19...
Nf6 {[%clk 0:02:35.1]} 20. Rb1 {[%clk 0:02:22.6]} 20... Rf7 {[%clk 0:02:27.5]}
21. Nd2 {[%clk 0:02:19.4]} 21... Rg7 {[%clk 0:02:25.4]} 22. c4 {[%clk 0:02:13]}
22... Ng6 {[%clk 0:02:05.8]} 23. c5 {[%clk 0:02:11]} 23... Nf8 {[%clk
0:02:06.1]} 24. cxd6 {[%clk 0:02:08.4]} 24... cxd6 {[%clk 0:02:05.9]} 25. Nc4
{[%clk 0:02:06.9]} 25... Ne8 {[%clk 0:02:05]} 26. Rb3 {[%clk 0:02:02]} 26... Nh7
{[%clk 0:02:04.4]} 27. Qd2 {[%clk 0:01:52.7]} 27... Nhf6 {[%clk 0:02:03.8]} 28.
Nba3 {[%clk 0:01:34.6]} 28... g4 {[%clk 0:02:03.5]} 29. fxg4 {[%clk 0:01:33.9]}
29... hxg4 {[%clk 0:01:53.2]} 30. hxg4 {[%clk 0:01:33.3]} 30... Nxe4 {[%clk
0:01:46.6]} 31. Qc2 {[%clk 0:01:32.1]} 31... Qh4 {[%clk 0:01:45.1]} 32. g3
{[%clk 0:00:08.3]} 32... fxg3 {[%clk 0:01:29.6]} 33. Bf3 {[%clk 0:00:07.6]}
33... Nf2 {[%clk 0:01:28.4]} 34. Bg2 {[%clk 0:00:02.7]} 34... Bxg4 {[%clk
0:01:16.3]} 35. Rxg3 {[%clk 0:00:02]} 35... Nh3+ {[%clk 0:01:09.3]} 36. Rxh3
{[%clk 0:00:01.3]} 36... Bxh3 {[%clk 0:01:09.1]} 0-1

[Event "Late-Titled-Tuesday-Blitz-September-12-2023"]
[Site "Chess.com"]
[Date "2023.09.12"]
[Round "11"]
[White "ilya2700"]
[Black "The_Straightforward_Rook"]
[Result "0-1"]
[WhiteElo "2291"]
[BlackElo "2510"]
[TimeControl "180+1"]
[EndTime "15:59:51 PDT"]
[Termination "The_Straightforward_Rook won by resignation"]

1. c4 {[%clk 0:03:00]} 1... e5 {[%clk 0:02:59.5]} 2. Nc3 {[%clk 0:03:00.5]} 2...
Nf6 {[%clk 0:02:58.9]} 3. Nf3 {[%clk 0:03:00.9]} 3... e4 {[%clk 0:02:59]} 4. Ng5
{[%clk 0:03:01]} 4... c6 {[%clk 0:02:59.7]} 5. Ngxe4 {[%clk 0:03:01.2]} 5...
Nxe4 {[%clk 0:02:58.8]} 6. Nxe4 {[%clk 0:03:01.9]} 6... d5 {[%clk 0:02:59.4]} 7.
cxd5 {[%clk 0:03:02.6]} 7... cxd5 {[%clk 0:03:00.3]} 8. Nc3 {[%clk 0:03:01.7]}
8... d4 {[%clk 0:02:58.9]} 9. Ne4 {[%clk 0:03:01.7]} 9... Nc6 {[%clk 0:02:59.3]}
10. d3 {[%clk 0:02:52.4]} 10... Be6 {[%clk 0:02:59.1]} 11. g3 {[%clk 0:02:50]}
11... f5 {[%clk 0:02:56.6]} 12. Nd2 {[%clk 0:02:50]} 12... Bd5 {[%clk 0:02:55]}
13. Rg1 {[%clk 0:02:49.9]} 13... Bd6 {[%clk 0:02:48]} 14. Bg2 {[%clk 0:02:49.2]}
14... Bxg2 {[%clk 0:02:46.6]} 15. Rxg2 {[%clk 0:02:49.8]} 15... O-O {[%clk
0:02:44.6]} 16. Qb3+ {[%clk 0:02:49.2]} 16... Kh8 {[%clk 0:02:44.2]} 17. Qxb7
{[%clk 0:02:45.2]} 17... Nb4 {[%clk 0:02:43.4]} 18. Kf1 {[%clk 0:02:36]} 18...
f4 {[%clk 0:02:43.1]} 19. Ne4 {[%clk 0:02:30.9]} 19... fxg3 {[%clk 0:02:29.8]}
20. Nxd6 {[%clk 0:02:15.8]} 20... Qxd6 {[%clk 0:02:19.6]} 21. Rxg3 {[%clk
0:02:14.6]} 21... Qf6 {[%clk 0:02:19.9]} 22. Rf3 {[%clk 0:02:13.6]} 22... Qd6
{[%clk 0:02:09.4]} 23. Bf4 {[%clk 0:02:01]} 23... Qc5 {[%clk 0:02:09.6]} 24. Be5
{[%clk 0:01:41.6]} 24... Qxe5 {[%clk 0:01:58.4]} 25. Rxf8+ {[%clk 0:01:40.6]}
25... Rxf8 {[%clk 0:01:54.4]} 26. Qxb4 {[%clk 0:01:41.5]} 26... Qf4 {[%clk
0:01:54]} 27. f3 {[%clk 0:01:34.8]} 27... Re8 {[%clk 0:01:52.6]} 28. Qc5 {[%clk
0:01:29.6]} 28... Qxh2 {[%clk 0:01:50.1]} 29. Re1 {[%clk 0:01:19]} 29... Qh1+
{[%clk 0:01:44.4]} 30. Kf2 {[%clk 0:01:19.7]} 30... Qh4+ {[%clk 0:01:39.1]} 31.
Kf1 {[%clk 0:01:20.1]} 31... h6 {[%clk 0:01:34.8]} 32. e4 {[%clk 0:01:11.3]}
32... Qh1+ {[%clk 0:01:04.4]} 33. Kf2 {[%clk 0:01:10.7]} 33... Qh2+ {[%clk
0:01:04]} 34. Kf1 {[%clk 0:01:10.2]} 34... Re5 {[%clk 0:00:57.9]} 35. Qc8+
{[%clk 0:01:00.2]} 35... Kh7 {[%clk 0:00:57.3]} 36. Re2 {[%clk 0:00:35.2]} 36...
Qh1+ {[%clk 0:00:52.9]} 37. Kf2 {[%clk 0:00:35.3]} 37... Rg5 {[%clk 0:00:53.3]}
38. f4 {[%clk 0:00:29.3]} 38... Qg1+ {[%clk 0:00:51.3]} 0-1

[Event "Late-Titled-Tuesday-Blitz-September-12-2023"]
[Site "Chess.com"]
[Date "2023.09.12"]
[Round "11"]
[White "GlavkonVVS"]
[Black "Zhigalko_Sergei"]
[Result "1-0"]
[WhiteElo "2613"]
[BlackElo "2854"]
[TimeControl "180+1"]
[EndTime "15:59:53 PDT"]
[Termination "GlavkonVVS won on time"]

1. c4 {[%clk 0:03:00.9]} 1... Nf6 {[%clk 0:02:59.7]} 2. Nc3 {[%clk 0:03:01.2]}
2... e5 {[%clk 0:02:59.8]} 3. g3 {[%clk 0:03:01.7]} 3... c6 {[%clk 0:02:59.9]}
4. Bg2 {[%clk 0:03:02.2]} 4... d5 {[%clk 0:03:00]} 5. cxd5 {[%clk 0:03:02.8]}
5... cxd5 {[%clk 0:03:00.9]} 6. Qb3 {[%clk 0:03:03.4]} 6... e4 {[%clk
0:02:18.4]} 7. d3 {[%clk 0:03:03]} 7... Nc6 {[%clk 0:02:18.5]} 8. dxe4 {[%clk
0:03:02.4]} 8... d4 {[%clk 0:02:17.9]} 9. Nd5 {[%clk 0:03:02.4]} 9... a5 {[%clk
0:02:09.8]} 10. Bg5 {[%clk 0:02:56.7]} 10... a4 {[%clk 0:02:08.7]} 11. Qd1
{[%clk 0:02:45.3]} 11... a3 {[%clk 0:02:03]} 12. b3 {[%clk 0:02:39.1]} 12... Be6
{[%clk 0:01:38.4]} 13. Bxf6 {[%clk 0:02:36.8]} 13... gxf6 {[%clk 0:01:37.6]} 14.
Nf3 {[%clk 0:02:35]} 14... Qa5+ {[%clk 0:01:14.6]} 15. Nd2 {[%clk 0:02:23.3]}
15... Bh6 {[%clk 0:01:01.2]} 16. f4 {[%clk 0:02:10.8]} 16... f5 {[%clk
0:00:55.7]} 17. O-O {[%clk 0:02:10.6]} 17... fxe4 {[%clk 0:00:55]} 18. Nxe4
{[%clk 0:02:04.6]} 18... O-O-O {[%clk 0:00:51.2]} 19. Ndf6 {[%clk 0:01:56.8]}
19... Bg7 {[%clk 0:00:36.7]} 20. Rc1 {[%clk 0:01:54.5]} 20... Kb8 {[%clk
0:00:36.8]} 21. Kh1 {[%clk 0:01:42.1]} 21... h5 {[%clk 0:00:31.3]} 22. Rc5
{[%clk 0:01:40.6]} 22... Qb6 {[%clk 0:00:31]} 23. Rg5 {[%clk 0:01:38.8]} 23...
Bxf6 {[%clk 0:00:27.3]} 24. Nxf6 {[%clk 0:01:38.8]} 24... h4 {[%clk 0:00:28.2]}
25. g4 {[%clk 0:01:30.8]} 25... h3 {[%clk 0:00:26.5]} 26. Bf3 {[%clk 0:01:30.9]}
26... Nb4 {[%clk 0:00:20.4]} 27. Qd2 {[%clk 0:01:29.4]} 27... Rc8 {[%clk
0:00:17.2]} 28. f5 {[%clk 0:01:22.1]} 28... Rc2 {[%clk 0:00:06.1]} 29. Qf4+
{[%clk 0:01:20.6]} 29... Ka7 {[%clk 0:00:06.8]} 30. fxe6 {[%clk 0:01:18.8]}
30... fxe6 {[%clk 0:00:07]} 31. Rg7 {[%clk 0:01:17.7]} 31... Rf8 {[%clk
0:00:04.6]} 32. Rxb7+ {[%clk 0:01:13.4]} 32... Qxb7 {[%clk 0:00:02.5]} 33. Bxb7
{[%clk 0:01:13.7]} 33... Kxb7 {[%clk 0:00:02.4]} 34. Qxd4 {[%clk 0:01:12.4]}
34... Nd5 {[%clk 0:00:01.3]} 35. g5 {[%clk 0:01:11.6]} 35... Rxe2 {[%clk
0:00:01.2]} 36. Qc5 {[%clk 0:01:09.2]} 36... Rc8 {[%clk 0:00:01.1]} 37. Qb5+
{[%clk 0:01:08.4]} 37... Nb6 {[%clk 0:00:01.8]} 38. Qxe2 {[%clk 0:01:09]} 38...
Rc1 {[%clk 0:00:02.3]} 39. Rxc1 {[%clk 0:01:08.7]} 1-0